bitfinex/quotes_BTCUSD_20250208
["timestamp","ask_amount","ask_price","bid_price","bid_amount"]
[1739033490850,0.00022428,96060.0,96059.0,0.48289206]
[1739033491225,0.00022428,96060.0,96059.0,0.49389206]
[1739033495984,0.00022428,96075.0,96068.0,0.179139]
[1739033496181,0.00027443,96069.0,96068.0,0.28268341]
[1739033496385,0.00027443,96069.0,96068.0,0.33290533]
[1739033496993,0.00027443,96069.0,96068.0,0.33390533]
[1739033497351,0.00027443,96069.0,96068.0,0.48690533]
[1739033497760,0.00027443,96069.0,96068.0,0.49662161]
[1739033498155,0.00027443,96069.0,96068.0,0.49262161]
[1739033498559,0.00027443,96069.0,96068.0,0.50162161]
[1739033498737,0.00027443,96069.0,96068.0,0.49662161]
[1739033499724,0.00027443,96069.0,96068.0,0.49262161]
[1739033500173,0.00027443,96069.0,96068.0,0.49362161]
[1739033500722,0.00027443,96069.0,96068.0,0.49562161]
[1739033500926,0.00027443,96069.0,96068.0,0.49962161]
[1739033501134,0.00027443,96069.0,96068.0,0.49662161]
[1739033501343,0.00027443,96069.0,96068.0,0.57782161]
[1739033501547,0.00027443,96069.0,96068.0,0.64547914]
[1739033501750,0.00027443,96069.0,96068.0,0.64447914]
[1739033502135,0.00027443,96069.0,96068.0,0.64947914]
[1739033502546,0.00027443,96069.0,96068.0,0.65980566]
[1739033503085,0.00022428,96075.0,96074.0,0.306129]
[1739033503305,0.00022428,96075.0,96074.0,0.46397706]
[1739033503520,0.00022428,96075.0,96074.0,0.48286848]
[1739033504343,0.00022428,96075.0,96074.0,0.49086848]
[1739033504545,0.00022428,96075.0,96074.0,0.49886848]
[1739033504973,0.00022428,96075.0,96074.0,0.50058476]
[1739033505479,0.00022428,96075.0,96074.0,0.50658476]
[1739033505794,0.00022428,96075.0,96074.0,0.49858476]
[1739033506208,0.00022428,96075.0,96074.0,0.50458476]
[1739033506980,0.00022428,96075.0,96074.0,0.49858476]
[1739033507514,0.07782428,96075.0,96074.0,0.47558476]
[1739033507718,0.07782428,96075.0,96074.0,0.44224035]
[1739033508315,0.07782428,96075.0,96074.0,0.46524035]
[1739033508316,0.00022428,96075.0,96074.0,0.46524035]
[1739033508599,0.00022428,96075.0,96074.0,0.49263554]
[1739033509636,0.00022428,96075.0,96074.0,0.49763554]
[1739033509821,0.00022428,96075.0,96074.0,0.50163554]
[1739033509971,0.00022428,96075.0,96074.0,0.49663554]
[1739033510397,0.00022428,96075.0,96074.0,0.50063554]
[1739033517246,0.00022428,96075.0,96074.0,0.49663554]
[1739033517613,0.00022428,96075.0,96074.0,0.49263554]
[1739033517968,0.00022428,96075.0,96074.0,0.49963554]
[1739033518757,0.00022428,96075.0,96074.0,0.50663554]
[1739033519168,0.00022428,96075.0,96074.0,0.49963554]
[1739033519519,0.00022428,96075.0,96074.0,0.50663554]
[1739033520319,0.00022428,96075.0,96074.0,0.49963554]
[1739033520910,0.00022428,96075.0,96074.0,0.49263554]
[1739033521083,0.00022428,96075.0,96074.0,0.50163554]
[1739033522138,0.00022428,96075.0,96074.0,0.51063554]
[1739033522868,0.00022428,96075.0,96074.0,0.50163554]
[1739033523684,0.00022428,96075.0,96074.0,0.51063554]
[1739033523924,0.00022428,96075.0,96074.0,0.50163554]
[1739033524432,0.00022428,96075.0,96074.0,0.51063554]
[1739033524693,0.0011004,96108.0,96082.0,0.156116]
[1739033524956,0.0782,96126.0,96075.0,0.173]
[1739033524957,0.00011346,96114.0,96113.0,0.316066]
[1739033525197,0.003,96140.0,96130.0,0.306038]
[1739033525685,0.00236428,96131.0,96130.0,0.32696773]
[1739033525940,0.00236428,96131.0,96130.0,0.45247138]
[1739033526702,0.00236428,96131.0,96130.0,0.46147138]
[1739033527456,0.00236428,96131.0,96130.0,0.48018766]
[1739033528409,0.00236428,96131.0,96130.0,0.52853886]
[1739033528631,0.00236428,96131.0,96130.0,0.54653886]
[1739033529369,0.00236428,96131.0,96130.0,0.62363886]
[1739033529614,0.00236428,96131.0,96130.0,0.54653886]
[1739033530296,0.00236428,96131.0,96130.0,0.53753886]
[1739033530520,0.00236428,96131.0,96130.0,0.51953886]
[1739033530721,0.00236428,96131.0,96130.0,0.52853886]
[1739033531226,0.00236428,96131.0,96130.0,0.47118766]
[1739033531456,0.00236428,96131.0,96130.0,0.46218766]
[1739033531808,0.00236428,96131.0,96130.0,0.47118766]
[1739033532037,0.00236428,96131.0,96130.0,0.48018766]
[1739033532462,0.00236428,96131.0,96130.0,0.47118766]
[1739033532799,0.00236428,96131.0,96130.0,0.48018766]
[1739033533174,0.00236428,96131.0,96130.0,0.47118766]
[1739033533360,0.00236428,96131.0,96130.0,0.46218766]
[1739033533596,0.00236428,96131.0,96130.0,0.47118766]
[1739033533783,0.00236428,96131.0,96130.0,0.46218766]
[1739033534118,0.00236428,96131.0,96130.0,0.47118766]
[1739033534342,0.00236428,96131.0,96130.0,0.46218766]
[1739033534696,0.00236428,96131.0,96130.0,0.47118766]
[1739033534829,0.00247098,96131.0,96130.0,0.47118766]
[1739033535661,0.00247098,96131.0,96130.0,0.46218766]
[1739033535856,0.00247098,96131.0,96130.0,0.47118766]
[1739033536607,0.01221828,96138.0,96137.0,0.306027]
[1739033536813,0.01235436,96138.0,96137.0,0.43153065]
[1739033537012,0.01235436,96138.0,96137.0,0.45241822]
[1739033537216,0.01235436,96138.0,96137.0,0.501736]
[1739033538748,0.01235436,96138.0,96137.0,0.51145228]
[1739033538954,0.01235436,96138.0,96137.0,0.51845228]
[1739033539382,0.01235436,96138.0,96137.0,0.52545228]
[1739033539973,0.01235436,96138.0,96137.0,0.4761345]
[1739033540112,0.01235436,96138.0,96137.0,0.49693464]
[1739033540316,0.01235436,96138.0,96137.0,0.4761345]
[1739033542329,0.01235436,96138.0,96137.0,0.3201075]
[1739033542963,0.01235436,96138.0,96137.0,0.4761345]
[1739033544832,0.01235436,96138.0,96137.0,0.4691345]
[1739033545053,0.01235436,96138.0,96137.0,0.4781345]
[1739033545245,0.01235436,96138.0,96137.0,0.4711345]
[1739033545459,0.01235436,96138.0,96137.0,0.4801345]
[1739033546088,0.01235436,96138.0,96137.0,0.4711345]
[1739033546333,0.01235436,96138.0,96137.0,0.4801345]
[1739033546696,0.01235436,96138.0,96137.0,0.4481345]
[1739033547109,0.01246096,96138.0,96137.0,0.4481345]
[1739033547679,0.01246096,96138.0,96137.0,0.4571345]
[1739033548308,0.09086096,96138.0,96137.0,0.4571345]
[1739033548483,0.09086096,96138.0,96137.0,0.4481345]
[1739033548689,0.09086096,96138.0,96137.0,0.4571345]
[1739033549341,0.09086096,96138.0,96137.0,0.4481345]
[1739033549539,0.09086096,96138.0,96137.0,0.3011075]
[1739033549744,0.09086096,96138.0,96137.0,0.4571345]
[1739033555008,0.09086096,96138.0,96137.0,0.46489831]
[1739033557037,0.01246096,96138.0,96137.0,0.46489831]
[1739033557822,0.003,96140.0,96138.0,0.15]
[1739033558027,0.003,96140.0,96139.0,0.40852765]
[1739033558578,0.003,96140.0,96139.0,0.42936956]
[1739033559218,0.003,96140.0,96139.0,0.43713337]
[1739033559420,0.003,96140.0,96139.0,0.47848985]
[1739033559608,0.003,96140.0,96139.0,0.48820613]
[1739033561321,0.003,96140.0,96139.0,0.49720613]
[1739033561698,0.003,96140.0,96139.0,0.48820613]
[1739033562077,0.003,96140.0,96139.0,0.49520613]
[1739033562279,0.003,96140.0,96139.0,0.48620613]
[1739033562494,0.003,96140.0,96139.0,0.49320613]
[1739033568487,0.003,96140.0,96139.0,0.48620613]
[1739033569040,0.003,96140.0,96139.0,0.49120613]
[1739033569247,0.003,96140.0,96139.0,0.48420613]
[1739033569644,0.003,96140.0,96139.0,0.48820613]
[1739033570875,0.003,96140.0,96139.0,0.48420613]
[1739033571293,0.0844,96140.0,96139.0,0.29882565]
[1739033571489,0.288722,96140.0,96139.0,0.14882565]
[1739033571720,0.1327,96140.0,96139.0,0.14382565]
[1739033571931,0.288722,96140.0,96139.0,0.14782565]
[1739033572131,0.1328066,96140.0,96139.0,0.14782565]
[1739033572328,0.2888286,96140.0,96139.0,0.14782565]
[1739033572533,0.2888286,96140.0,96139.0,0.14482565]
[1739033572731,0.1328066,96140.0,96139.0,0.14182565]
[1739033572934,0.2888286,96140.0,96139.0,0.14382565]
[1739033573626,0.2888286,96140.0,96139.0,0.13606184]
[1739033574032,0.2888286,96140.0,96139.0,0.11521993]
[1739033575635,0.1328066,96140.0,96139.0,0.11521993]
[1739033575851,0.2888286,96140.0,96139.0,0.11521993]
[1739033580235,0.2888286,96140.0,96139.0,0.01271628]
[1739033581555,0.2888286,96140.0,96139.0,0.01171628]
[1739033581760,0.2888286,96140.0,96139.0,0.002]
[1739033581970,0.2888286,96140.0,96139.0,0.001]
[1739033582366,0.234424,96139.0,96138.0,0.00022386]
[1739033583725,0.234424,96139.0,96138.0,0.00122386]
[1739033583934,0.0784,96139.0,96138.0,0.00122386]
[1739033584139,0.0784,96139.0,96138.0,0.10372751]
[1739033584335,0.0784,96139.0,96138.0,0.12460635]
[1739033584559,0.0784,96139.0,96138.0,0.10372751]
[1739033584803,0.234424,96139.0,96138.0,0.10372751]
[1739033585158,0.234424,96139.0,96138.0,0.11344615]
[1739033587721,0.234424,96139.0,96138.0,0.13432499]
[1739033592584,0.156024,96139.0,96138.0,0.13432499]
[1739033592788,0.234424,96139.0,96138.0,0.13432499]
[1739033593772,0.234424,96139.0,96138.0,0.11344615]
[1739033596685,0.234424,96139.0,96138.0,0.0109425]
[1739033597034,0.283624,96139.0,96138.0,0.0109425]
[1739033599514,0.283624,96139.0,96138.0,0.00122386]
[1739033600485,0.283624,96139.0,96138.0,0.10372751]
[1739033600872,0.283624,96139.0,96138.0,0.12460373]
[1739033601482,0.0031066,96140.0,96138.0,0.12460373]
[1739033601688,0.0031066,96140.0,96139.0,0.10250365]
[1739033602128,0.0031066,96140.0,96139.0,0.12337763]
[1739033603537,0.0031066,96140.0,96139.0,0.12837763]
[1739033603706,0.0031066,96140.0,96139.0,0.13810514]
[1739033604828,0.0031066,96140.0,96139.0,0.14588583]
[1739033605175,0.0031066,96140.0,96139.0,0.14988583]
[1739033605373,0.0031066,96140.0,96139.0,0.14488583]
[1739033605575,0.0031066,96140.0,96139.0,0.14088583]
[1739033605795,0.0031066,96140.0,96139.0,0.14488583]
[1739033609288,0.0031066,96140.0,96139.0,0.30090983]
[1739033612442,0.0031066,96140.0,96139.0,0.13515832]
[1739033613357,0.0527066,96140.0,96139.0,0.13515832]
[1739033613960,0.0527066,96140.0,96139.0,0.13315832]
[1739033614342,0.0527066,96140.0,96139.0,0.13215832]
[1739033614634,0.0527066,96140.0,96139.0,0.13415832]
[1739033614804,0.0527066,96140.0,96139.0,0.13315832]
[1739033615210,0.0527066,96140.0,96139.0,0.13415832]
[1739033619215,0.20977134,96140.0,96139.0,0.03165467]
[1739033619425,0.2087286,96140.0,96139.0,0.01078069]
[1739033620248,0.2087286,96140.0,96139.0,0.003]
[1739033620458,0.0527066,96140.0,96138.0,0.00022386]
[1739033620659,0.15706674,96139.0,96138.0,0.10272751]
[1739033621077,0.15706674,96139.0,96138.0,0.00022386]
[1739033621285,0.23876674,96139.0,96138.0,0.00022386]
[1739033621496,0.237724,96139.0,96138.0,0.00022386]
[1739033624277,0.237724,96139.0,96138.0,0.00122386]
[1739033629469,0.232724,96139.0,96138.0,0.00122386]
[1739033630515,0.2328308,96139.0,96138.0,0.00122386]
[1739033635958,0.2781308,96139.0,96138.0,0.00122386]
[1739033636685,0.2781308,96139.0,96138.0,0.00022386]
[1739033637010,0.2781308,96139.0,96138.0,0.00122386]
[1739033637605,0.2781308,96139.0,96138.0,0.00022386]
[1739033637825,0.2821308,96139.0,96138.0,0.00122386]
[1739033638178,0.2821308,96139.0,96138.0,0.00222386]
[1739033638387,0.38119965,96139.0,96138.0,0.00222386]
[1739033638813,0.2861308,96139.0,96138.0,0.00222386]
[1739033640771,0.4361308,96139.0,96138.0,0.00222386]
[1739033644360,0.54863445,96139.0,96138.0,0.00222386]
[1739033644556,0.57163445,96139.0,96138.0,0.00222386]
[1739033645521,0.56363445,96139.0,96138.0,0.00122386]
[1739033645821,0.6661381,96139.0,96138.0,0.00122386]
[1739033646173,0.6661381,96139.0,96138.0,0.00022386]
[1739033646630,0.6751381,96139.0,96138.0,8.6e-07]
[1739033647033,0.6751381,96139.0,96138.0,0.001]
[1739033647183,0.6751381,96139.0,96138.0,0.002]
[1739033647386,0.6841381,96139.0,96138.0,0.002]
[1739033651719,0.6923381,96139.0,96138.0,0.002]
[1739033654202,0.6923381,96139.0,96138.0,0.00222428]
[1739033655924,0.8019381,96139.0,96138.0,0.00222428]
[1739033659740,1.1221381,96139.0,96138.0,0.00222428]
[1739033660935,1.0125381,96139.0,96138.0,0.00222428]
[1739033663371,1.0043381,96139.0,96138.0,0.00222428]
[1739033663576,1.0124981,96139.0,96138.0,0.00222428]
[1739033665623,1.0114981,96139.0,96138.0,0.00222428]
[1739033666235,0.90899445,96139.0,96138.0,0.00222428]
[1739033670968,1.01859445,96139.0,96138.0,0.00222428]
[1739033672809,0.156056,96119.0,96118.0,7.307e-05]
[1739033673154,0.237256,96119.0,96118.0,0.00052695]
[1739033673564,0.237256,96119.0,96118.0,9.5e-07]
[1739033673565,0.52275965,96119.0,96118.0,9.5e-07]
[1739033673773,0.62233972,96119.0,96118.0,9.5e-07]
[1739033673974,1.05213972,96119.0,96118.0,9.5e-07]
[1739033674207,1.06013972,96119.0,96118.0,9.5e-07]
[1739033674414,1.06825972,96119.0,96118.0,9.5e-07]
[1739033675386,1.06325972,96119.0,96118.0,9.5e-07]
[1739033675582,1.07225972,96119.0,96118.0,0.00100095]
[1739033675786,1.08125972,96119.0,96118.0,0.00200095]
[1739033676059,0.97165972,96119.0,96118.0,0.00200095]
[1739033677281,0.97165972,96119.0,96118.0,0.00222523]
[1739033677475,0.9921943,96119.0,96118.0,0.00222523]
[1739033677946,1.00247482,96119.0,96118.0,0.00222523]
[1739033678479,0.99347482,96119.0,96118.0,0.00122523]
[1739033678901,1.00247482,96119.0,96118.0,0.00222523]
[1739033679218,0.99047482,96119.0,96118.0,0.00122523]
[1739033679423,0.99947482,96119.0,96118.0,0.00122523]
[1739033681199,1.00947482,96119.0,96118.0,0.00122523]
[1739033681455,1.00947482,96119.0,96118.0,2.3e-07]
[1739033686990,0.156098,96093.0,96092.0,0.08350077]
[1739033687189,0.15619702,96093.0,96092.0,0.08350077]
[1739033687392,0.156111,96085.0,96084.0,0.0765]
[1739033687565,0.476311,96085.0,96084.0,0.0765]
[1739033689148,0.156115,96083.0,96082.0,0.0497]
[1739033689378,0.15715774,96083.0,96082.0,0.0497]
[1739033690642,0.156131,96073.0,96072.0,0.0793]
[1739033691005,0.156131,96073.0,96071.0,0.0461]
[1739033691206,0.00104274,96073.0,96071.0,0.0461]
[1739033691506,0.156132,96072.0,96071.0,0.0461]
[1739033691952,0.47737474,96072.0,96071.0,0.06750343]
[1739033692164,0.476332,96072.0,96071.0,0.06750343]
[1739033692384,0.156136,96070.0,96069.0,0.00022407]
[1739033692664,0.15717874,96070.0,96069.0,0.00022407]
[1739033693533,0.156136,96070.0,96069.0,0.00022407]
[1739033693863,0.157136,96070.0,96069.0,0.00022407]
[1739033694739,0.16774611,96070.0,96069.0,0.00022407]
[1739033695136,0.157136,96070.0,96069.0,0.00022407]
[1739033695315,0.477336,96070.0,96069.0,0.00022407]
[1739033695852,0.478336,96070.0,96069.0,0.00022407]
[1739033708138,0.3222,96070.0,96069.0,0.00022407]
[1739033708347,0.3222,96070.0,96069.0,0.10272772]
[1739033708557,0.3222,96070.0,96069.0,0.2024107]
[1739033709381,0.3222,96070.0,96069.0,0.2480107]
[1739033710020,0.3212,96070.0,96069.0,0.2480107]
[1739033710354,0.3212,96070.0,96069.0,0.22872772]
[1739033710561,0.3212,96070.0,96069.0,0.2480107]
[1739033711514,0.3202,96070.0,96069.0,0.2480107]
[1739033711695,0.3212,96070.0,96069.0,0.2490107]
[1739033712104,0.3212,96070.0,96069.0,0.4051477]
[1739033712305,0.3212,96070.0,96069.0,0.4061477]
[1739033712487,0.156114,96084.0,96073.0,0.15613]
[1739033712681,0.156114,96084.0,96075.0,0.0804]
[1739033712908,0.156114,96084.0,96076.0,0.10250365]
[1739033713168,0.156114,96084.0,96076.0,0.12178313]
[1739033713319,0.208148,96086.0,96076.0,0.12178313]
[1739033713527,0.156115,96083.0,96076.0,0.12178313]
[1739033715482,0.156115,96083.0,96076.0,0.12278313]
[1739033715658,0.156112,96085.0,96076.0,0.12278313]
[1739033715873,0.208138,96090.0,96076.0,0.12278313]
[1739033716032,0.3202,96089.0,96076.0,0.12278313]
[1739033716231,0.001,96083.0,96076.0,0.10350365]
[1739033716445,0.001,96083.0,96077.0,0.01924702]
[1739033716652,0.001,96083.0,96078.0,0.10250365]
[1739033717052,0.001,96083.0,96079.0,0.01924601]
[1739033717260,0.001,96083.0,96080.0,0.10250365]
[1739033717467,0.001,96083.0,96081.0,0.01924384]
[1739033717696,0.156108,96087.0,96082.0,0.10250365]
[1739033717901,0.156107,96088.0,96082.0,0.10250365]
[1739033718315,0.156107,96088.0,96083.0,0.01923833]
[1739033718573,0.156107,96088.0,96084.0,0.10250365]
[1739033718749,0.004,96087.0,96085.0,0.0481]
[1739033718891,0.004,96087.0,96086.0,0.12174038]
[1739033719096,0.004,96087.0,96086.0,0.27785038]
[1739033719297,0.3202,96089.0,96087.0,0.156108]
[1739033719546,0.3202,96089.0,96088.0,0.12173938]
[1739033720692,0.3202,96089.0,96088.0,0.27784538]
[1739033721529,0.3202,96089.0,96088.0,0.27884538]
[1739033722061,9.902e-05,96093.0,96088.0,0.12273938]
[1739033723714,9.902e-05,96093.0,96088.0,0.12173938]
[1739033723914,9.902e-05,96093.0,96088.0,0.12273938]
[1739033724545,9.902e-05,96093.0,96088.0,0.27884538]
[1739033724741,9.902e-05,96093.0,96090.0,0.156103]
[1739033725101,9.902e-05,96093.0,96091.0,0.27783123]
[1739033725742,9.902e-05,96093.0,96091.0,0.12173023]
[1739033727169,9.902e-05,96093.0,96091.0,0.12373023]
[1739033727375,9.902e-05,96093.0,96092.0,0.1561]
[1739033727580,9.902e-05,96093.0,96092.0,0.25860365]
[1739033727807,9.902e-05,96093.0,96092.0,0.277804]
[1739033728729,9.902e-05,96093.0,96092.0,0.279804]
[1739033729937,9.902e-05,96093.0,96092.0,0.123704]
[1739033730143,9.902e-05,96093.0,96092.0,0.277804]
[1739033730544,9.902e-05,96093.0,96092.0,0.279804]
[1739033731860,9.902e-05,96093.0,96092.0,0.28475774]
[1739033733304,9.902e-05,96093.0,96092.0,0.36545774]
[1739033734253,9.902e-05,96093.0,96092.0,0.36345774]
[1739033734655,0.00109902,96093.0,96092.0,0.36345774]
[1739033734869,0.00209902,96093.0,96092.0,0.37145774]
[1739033735059,9.902e-05,96093.0,96092.0,0.36345774]
[1739033735262,0.00109902,96093.0,96092.0,0.37145774]
[1739033735462,0.00209902,96093.0,96092.0,0.37145774]
[1739033735675,0.00109902,96093.0,96092.0,0.36345774]
[1739033736339,0.00109902,96093.0,96092.0,0.51345774]
[1739033736517,0.00109902,96093.0,96092.0,0.48404722]
[1739033736720,9.902e-05,96093.0,96092.0,0.53024722]
[1739033736915,0.00109902,96093.0,96092.0,0.53724722]
[1739033737122,0.00209902,96093.0,96092.0,0.53824722]
[1739033737325,0.00209902,96093.0,96092.0,0.53901883]
[1739033737544,0.00209902,96093.0,96092.0,0.54501883]
[1739033737748,0.00109902,96093.0,96092.0,0.54501883]
[1739033737946,0.00209902,96093.0,96092.0,0.54601883]
[1739033738287,0.00309902,96093.0,96092.0,0.57701883]
[1739033738493,0.00309902,96093.0,96092.0,0.59685276]
[1739033738494,0.00209902,96093.0,96092.0,0.59685276]
[1739033738677,0.00209902,96093.0,96092.0,0.63019395]
[1739033738828,0.00309902,96093.0,96092.0,0.63019395]
[1739033739221,0.0001068,96118.0,96117.0,0.156059]
[1739033739416,0.00056053,96118.0,96117.0,0.25856265]
[1739033739632,0.00056053,96118.0,96117.0,0.28266151]
[1739033739832,0.00056053,96118.0,96117.0,0.43266151]
[1739033741075,0.00056053,96118.0,96117.0,0.43766151]
[1739033741278,0.00056053,96118.0,96117.0,0.46066151]
[1739033741484,0.00056053,96118.0,96117.0,0.46342343]
[1739033741861,0.00056053,96118.0,96117.0,0.56819215]
[1739033742976,0.00056053,96118.0,96117.0,0.55919215]
[1739033743152,0.00056053,96118.0,96117.0,0.55519215]
[1739033743510,0.00056053,96118.0,96117.0,0.58450926]
[1739033743658,0.00056053,96118.0,96117.0,0.59150926]
[1739033743843,0.00056053,96118.0,96117.0,0.57550926]
[1739033744043,0.00056053,96118.0,96117.0,0.58450926]
[1739033744245,0.00056053,96118.0,96117.0,0.59150926]
[1739033744661,0.00056053,96118.0,96117.0,0.58250926]
[1739033744901,0.00056053,96118.0,96117.0,0.60050926]
[1739033745156,0.00056053,96118.0,96117.0,0.97360926]
[1739033745963,0.00056053,96118.0,96117.0,1.00587263]
[1739033746156,0.00056053,96118.0,96117.0,0.99687263]
[1739033746504,0.00056053,96118.0,96117.0,0.99811071]
[1739033746505,0.00156053,96118.0,96117.0,0.99811071]
[1739033747104,0.00056053,96118.0,96117.0,0.99811071]
[1739033747310,0.00156053,96118.0,96117.0,1.00711071]
[1739033747513,0.00156053,96118.0,96117.0,0.99811071]
[1739033747917,0.00156053,96118.0,96117.0,1.00711071]
[1739033748340,5.3e-07,96118.0,96117.0,1.00711071]
[1739033748544,3.3e-07,96119.0,96118.0,0.477358]
[1739033748752,3.3e-07,96119.0,96118.0,0.63627642]
[1739033750963,0.00100033,96119.0,96118.0,0.65427642]
[1739033751373,3.3e-07,96119.0,96118.0,0.65427642]
[1739033751809,3.3e-07,96119.0,96118.0,0.98357642]
[1739033752195,1.3e-07,96119.0,96118.0,0.98357642]
[1739033753414,0.0001068,96139.0,96138.0,0.306025]
[1739033753619,0.0001068,96139.0,96138.0,0.43152865]
[1739033753879,0.0001068,96139.0,96138.0,0.45552865]
[1739033754080,0.0001068,96139.0,96138.0,0.46552865]
[1739033754298,0.0001068,96139.0,96138.0,0.54822865]
[1739033754501,0.0001068,96139.0,96138.0,0.58041347]
[1739033754703,0.0011068,96139.0,96138.0,0.59241347]
[1739033755095,0.0011068,96139.0,96138.0,0.60292247]
[1739033755300,0.0011068,96139.0,96138.0,0.61192247]
[1739033755506,0.0001068,96148.0,96147.0,0.306011]
[1739033755705,0.0001068,96148.0,96147.0,0.51421465]
[1739033756011,0.0001068,96148.0,96147.0,0.53819316]
[1739033756207,0.0001068,96148.0,96147.0,0.55952302]
[1739033756757,0.0002012,96148.0,96147.0,0.47682302]
[1739033757150,0.0002012,96148.0,96147.0,0.48582302]
[1739033757358,0.0002012,96148.0,96147.0,0.47682302]
[1739033757496,0.0002012,96148.0,96147.0,0.48482302]
[1739033758263,0.0002012,96148.0,96147.0,0.49382302]
[1739033759410,0.0784,96164.0,96163.0,0.305985]
[1739033759559,0.0784,96164.0,96163.0,0.40848865]
[1739033759766,0.0784,96164.0,96163.0,0.43245834]
[1739033760668,0.0001067,96172.0,96165.0,0.305981]
[1739033760917,0.0001067,96172.0,96165.0,0.40848465]
[1739033761091,0.0001067,96172.0,96165.0,0.43243627]
[1739033761855,0.0819067,96166.0,96165.0,0.27645527]
[1739033762193,0.1297067,96166.0,96165.0,0.43243627]
[1739033763007,0.1297067,96166.0,96165.0,0.12645527]
[1739033763167,0.1297067,96166.0,96165.0,0.28243627]
[1739033763375,0.1297067,96166.0,96165.0,0.28643627]
[1739033763583,0.2856867,96166.0,96165.0,0.13545527]
[1739033763899,0.2856867,96166.0,96165.0,0.02995162]
[1739033764445,0.2856867,96166.0,96165.0,0.007]
[1739033764617,0.2856867,96166.0,96165.0,0.001]
[1739033764841,0.0818,96163.0,96156.0,0.09252722]
[1739033765014,0.285594,96157.0,96156.0,0.09252722]
[1739033765226,0.285594,96157.0,96156.0,0.19503087]
[1739033766902,0.285594,96157.0,96156.0,0.21899988]
[1739033767149,0.285594,96157.0,96156.0,0.12647266]
[1739033767463,0.285594,96157.0,96156.0,0.10250365]
[1739033771739,0.285594,96157.0,96156.0,0.096014]
[1739033775143,0.285594,96157.0,96156.0,0.09623807]
[1739033782690,0.285594,96157.0,96156.0,0.00022407]
[1739033786480,0.2857007,96157.0,96156.0,0.00022407]
[1739033788647,0.2857007,96157.0,96156.0,0.10272772]
[1739033788648,0.0001067,96157.0,96156.0,0.10272772]
[1739033789055,0.0001067,96157.0,96156.0,0.12750083]
[1739033790326,0.0001067,96157.0,96156.0,0.28349683]
[1739033790899,0.0001067,96157.0,96156.0,0.12750083]
[1739033791495,0.2352007,96157.0,96156.0,0.12750083]
[1739033791829,0.2352007,96157.0,96156.0,0.10272772]
[1739033793840,0.1561007,96157.0,96156.0,0.10272772]
[1739033796196,0.1561007,96157.0,96156.0,0.12750083]
[1739033796408,0.1561007,96157.0,96156.0,0.10272772]
[1739033801176,0.28684344,96157.0,96156.0,0.00022407]
[1739033801395,0.2858007,96157.0,96156.0,0.00022407]
[1739033807952,0.2868007,96157.0,96156.0,0.00022407]
[1739033811194,0.6070007,96157.0,96156.0,0.00022407]
[1739033820767,0.1571007,96157.0,96156.0,0.10272772]
[1739033823526,0.0011067,96157.0,96156.0,0.10272772]
[1739033823946,0.0011067,96157.0,96156.0,0.12755579]
[1739033824779,0.0001067,96157.0,96156.0,0.12755579]
[1739033825179,0.0011067,96157.0,96156.0,0.12755579]
[1739033826006,0.0011067,96157.0,96156.0,0.12859566]
[1739033826233,0.0011067,96157.0,96156.0,0.28459166]
[1739033826405,0.0011067,96157.0,96156.0,0.28355179]
[1739033826612,0.0001067,96157.0,96156.0,0.28355179]
[1739033826820,0.0011067,96157.0,96156.0,0.28355179]
[1739033827428,0.0001067,96157.0,96156.0,0.28555179]
[1739033827628,0.0001067,96157.0,96156.0,0.28755179]
[1739033828432,0.0001067,96157.0,96156.0,0.13155579]
[1739033828922,0.0001067,96157.0,96156.0,0.12955579]
[1739033829080,0.0001067,96157.0,96156.0,0.13155579]
[1739033829463,0.0001067,96157.0,96156.0,0.28755179]
[1739033829665,0.0001067,96157.0,96156.0,0.28555179]
[1739033829980,0.0001067,96157.0,96156.0,0.28755179]
[1739033830367,0.0001067,96157.0,96156.0,0.28355179]
[1739033830570,0.0001067,96157.0,96156.0,0.12855579]
[1739033830765,0.0001067,96157.0,96156.0,0.12955579]
[1739033830970,0.0001067,96157.0,96156.0,0.28555179]
[1739033833207,0.0001067,96157.0,96156.0,0.12955579]
[1739033833572,0.1561007,96157.0,96156.0,0.12955579]
[1739033833776,0.0001067,96157.0,96156.0,0.12955579]
[1739033834464,0.0001067,96157.0,96156.0,0.12755579]
[1739033834665,0.0001067,96157.0,96156.0,0.12855579]
[1739033834861,0.0001067,96157.0,96156.0,0.12755579]
[1739033835800,0.0001067,96157.0,96156.0,0.12855579]
[1739033836310,0.0001067,96157.0,96156.0,0.12755579]
[1739033836311,0.2360007,96157.0,96156.0,0.12755579]
[1739033836686,0.2370007,96157.0,96156.0,0.10272772]
[1739033837270,0.2360007,96157.0,96156.0,0.00022407]
[1739033838195,0.2380007,96157.0,96156.0,0.00022407]
[1739033840600,0.24864171,96157.0,96156.0,0.00022407]
[1739033843067,0.61514171,96157.0,96156.0,0.00022407]
[1739033843485,0.61314171,96157.0,96156.0,0.00022407]
[1739033843879,0.61514171,96157.0,96156.0,0.00022407]
[1739033844334,0.61314171,96157.0,96156.0,0.00022407]
[1739033844530,0.61314171,96157.0,96156.0,0.00122407]
[1739033845578,0.61814171,96157.0,96156.0,0.00222407]
[1739033854515,0.72064536,96157.0,96156.0,0.00222407]
[1739033854868,0.61814171,96157.0,96156.0,0.00222407]
[1739033855437,0.61314171,96157.0,96156.0,0.00122407]
[1739033855854,0.61814171,96157.0,96156.0,0.00122407]
[1739033856056,0.61814171,96157.0,96156.0,0.00222407]
[1739033860205,0.0573,96155.0,96114.0,0.08350077]
[1739033860409,0.156061,96116.0,96115.0,0.10250365]
[1739033860601,0.32124274,96129.0,96115.0,0.1290919]
[1739033861111,0.156059,96117.0,96115.0,0.1290919]
[1739033861642,0.156059,96117.0,96115.0,0.1380919]
[1739033862046,0.156055,96120.0,96115.0,0.1290919]
[1739033862240,0.208066,96123.0,96115.0,0.12700469]
[1739033862444,0.156057,96119.0,96115.0,0.13100469]
[1739033862667,0.156057,96119.0,96115.0,0.10650365]
[1739033862870,0.156057,96119.0,96116.0,0.01950104]
[1739033863027,0.156057,96119.0,96117.0,0.10250365]
[1739033863228,0.156057,96119.0,96118.0,0.01950025]
[1739033863426,0.156057,96119.0,96118.0,0.1220039]
[1739033864802,0.157057,96119.0,96118.0,0.1270039]
[1739033865407,0.001,96119.0,96118.0,0.3616619]
[1739033865646,0.001,96119.0,96118.0,0.4114619]
[1739033866384,0.001,96119.0,96118.0,0.4144619]
[1739033867889,0.001,96119.0,96118.0,0.43557736]
[1739033868097,0.001,96119.0,96118.0,0.43580143]
[1739033869635,0.001,96119.0,96118.0,0.60880143]
[1739033869854,0.155986,96162.0,96124.0,0.023]
[1739033870057,0.08350077,96161.0,96146.0,0.1309]
[1739033870274,0.1560877,96166.0,96156.0,0.155996]
[1739033870427,0.1560877,96166.0,96156.0,0.25849965]
[1739033870428,0.155982,96165.0,96156.0,0.25849965]
[1739033870692,0.155983,96164.0,96156.0,0.27798589]